[Event "FIDE WYCC Girls U18 2023"]
[Site "Montesilvano"]
[Date "2023.11.22"]
[Round "9.5"]
[White "Mungunzul, Bat-Erdene"]
[Black "Shohradova, Lala"]
[Result "0-1"]
[ECO "E35"]
[WhiteElo "2111"]
[BlackElo "1846"]
[Annotator "RC"]
[PlyCount "132"]
[EventDate "2023.11.13"]
[EventType "swiss"]
[EventCountry "ITA"]
[SourceTitle "playchess.com"]
[Source "ChessBase"]
[SourceQuality "1"]
[TimeControl "40/5400+30:1800+30"]

1. d4 {[%emt 0:00:03]} Nf6 {[%emt 0:00:35]} 2. c4 {[%emt 0:00:11]} e6 {[%emt 0:00:18]} 3. Nc3 {[%emt 0:00:13]} Bb4 {[%emt 0:00:42]} 4. Qc2 {[%emt 0:00:18]} d5 {[%emt 0:01:13]} 5. cxd5 {[%emt 0:02:27]} exd5 {[%emt 0:01:05]} 6. Bg5 {[%emt 0:02:11]} h6 {[%emt 0:07:03]} 7. Bh4 {[%emt 0:00:58]} g5 {[%emt 0:12:36]} 8. Bg3 {[%emt 0:01:01]} Ne4 {[%emt 0:00:08]} 9. e3 {[%emt 0:04:11]} h5 {[%emt 0:02:10]} 10. f3 {[%emt 0:02:55]} Nxg3 {[%emt 0:02:17]} 11. hxg3 {[%emt 0:00:08]} Nc6 {[%emt 0:18:16]} 12. g4 {[%emt 0:05:00]} h4 {[%emt 0:00:59]} 13. Bd3 {[%emt 0:03:02]} Qe7 {[%emt 0:04:50]} 14. Kf2 {[%emt 0:11:08]} Be6 {[%emt 0:03:15]} 15. Nge2 {[%emt 0:04:33]} Qf6 {[%emt 0:05:16]} 16. Raf1 {[%emt 0:03:56]} O-O-O {[%emt 0:07:13]} 17. Ke1 {[%emt 0:00:33]} Rhe8 {[%emt 0:01:29]} 18. Kd1 {[%emt 0:02:06]} Qe7 {[%emt 0:03:23]} 19. a3 {[%emt 0:08:27]} Bd6 {[%emt 0:05:13]} 20. Kc1 {[%emt 0:05:01]} f6 {[%emt 0:00:57]} 21. Kb1 {[%emt 0:12:30]} Bg8 {[%emt 0:03:45]} 22. Bg6 {[%emt 0:03:19]} Qxe3 {[%emt 0:03:03]} 23. Bxe8 {[%emt 0:02:39]} Rxe8 {[%emt 0:00:00]} 24. Rd1 {[%emt 0:00:14]} Qf2 {[%emt 0:06:09]} 25. Nc1 {[%emt 0:02:43]} Qxc2+ {[%emt 0:00:49]} 26. Kxc2 {[%emt 0:00:05]} Bh7+ {[%emt 0:00:18]} 27. Kb3 {[%emt 0:00:26]} Bf4 {[%emt 0:02:01]} 28. Ka2 {[%emt 0:06:54]} Kd8 {[%emt 0:03:05]} 29. Rde1 {[%emt 0:04:19]} Nxd4 {[%emt 0:04:07]} 30. Rxe8+ {[%emt 0:03:56]} Kxe8 {[%emt 0:00:01]} 31. Rd1 {[%emt 0:00:25]} c5 {[%emt 0:00:49]} 32. Nd3 {[%emt 0:00:49]} Bd6 {[%emt 0:01:01]} 33. b4 {[%emt 0:01:38]} b6 {[%emt 0:00:30]} 34. bxc5 {[%emt 0:03:05]} bxc5 {[%emt 0:00:01]} 35. Kb2 {[%emt 0:00:06]} c4 {[%emt 0:01:01]} 36. Nb4 {[%emt 0:00:36]} Be5 {[%emt 0:00:17]} 37. Nbxd5 {[%emt 0:00:24]} Bg8 {[%emt 0:01:44]} 38. Ka2 {[%emt 0:00:55]} Kd7 {[%emt 0:00:41]} 39. Kb1 {[%emt 0:02:24]} Bh7+ {[%emt 0:00:26]} 40. Kc1 {[%emt 0:00:00]} Ke6 {[%emt 0:00:00]} 41. Kb2 {[%emt 0:07:55]} Nb5 {[%emt 0:13:51]} 42. a4 {[%emt 0:02:52]} Nxc3 {[%emt 0:00:45]} 43. Nxc3 {[%emt 0:00:40]} Bd3 {[%emt 0:00:09]} 44. Rc1 {[%emt 0:04:06]} a5 {[%emt 0:06:45]} 45. Rh1 {[%emt 0:07:59]} Kd6 {[%emt 0:01:12]} 46. f4 {[%emt 0:00:39]} gxf4 {[%emt 0:00:11]} 47. Rxh4 {[%emt 0:00:22]} Kc5 {[%emt 0:05:10]} 48. Rh5 {[%emt 0:00:14]} Kb4 {[%emt 0:00:40]} 49. Rxe5 {[%emt 0:00:14]} fxe5 {[%emt 0:00:00]} 50. g5 {[%emt 0:00:22]} Kc5 {[%emt 0:01:09]} 51. Nb5 {[%emt 0:00:50]} Kd5 {[%emt 0:01:11]} 52. Kc3 {[%emt 0:01:14]} Ke6 {[%emt 0:02:54]} 53. Kd2 {[%emt 0:05:59]} Be4 {[%emt 0:01:18]} 54. g6 {[%emt 0:05:46]} Bxg6 {[%emt 0:01:09]} 55. Ke2 {[%emt 0:00:19]} Kd5 {[%emt 0:00:35]} 56. Kd2 {[%emt 0:01:39]} Be4 {[%emt 0:00:57]} 57. Nc3+ {[%emt 0:00:34]} Kd4 {[%emt 0:00:00]} 58. g3 {[%emt 0:00:09]} f3 {[%emt 0:01:18]} 59. Nd1 {[%emt 0:00:03]} Bc6 {[%emt 0:00:24]} 60. g4 {[%emt 0:00:20]} Bxa4 {[%emt 0:00:19]} 61. Nc3 {[%emt 0:00:35]} Be8 {[%emt 0:00:26]} 62. g5 {[%emt 0:00:13]} e4 {[%emt 0:00:17]} 63. Nd1 {[%emt 0:00:20]} a4 {[%emt 0:00:44]} 64. Ke1 {[%emt 0:00:55]} a3 {[%emt 0:00:12]} 65. Kf2 {[%emt 0:00:10]} a2 {[%emt 0:00:17]} 66. Ne3 {[%emt 0:00:03]} Kd3 {[%emt 0:00:06]} 0-1

[Event "FIDE WYCC Girls U18 2023"]
[Site "Montesilvano"]
[Date "2023.11.22"]
[Round "9.6"]
[White "Barwinska, Ewa"]
[Black "Starosta, Martyna"]
[Result "1-0"]
[ECO "B15"]
[WhiteElo "1974"]
[BlackElo "2208"]
[Annotator "RC"]
[PlyCount "91"]
[EventDate "2023.11.13"]
[EventType "swiss"]
[EventCountry "ITA"]
[SourceTitle "playchess.com"]
[Source "ChessBase"]
[SourceQuality "1"]
[TimeControl "40/5400+30:1800+30"]

1. e4 {[%emt 0:00:01]} c6 {[%emt 0:00:05]} 2. d4 {[%emt 0:00:08]} d5 {[%emt 0:00:05]} 3. Nc3 {[%emt 0:00:07]} dxe4 {[%emt 0:00:06]} 4. Nxe4 {[%emt 0:00:07]} Nf6 {[%emt 0:00:05]} 5. Nxf6+ {[%emt 0:00:10]} exf6 {[%emt 0:00:09]} 6. c3 {[%emt 0:00:22]} Bd6 {[%emt 0:00:06]} 7. Bd3 {[%emt 0:00:12]} O-O {[%emt 0:00:08]} 8. Qc2 {[%emt 0:00:09]} Re8+ {[%emt 0:00:06]} 9. Ne2 {[%emt 0:00:13]} h5 {[%emt 0:00:24]} 10. Be3 {[%emt 0:03:14]} Nd7 {[%emt 0:02:40]} 11. O-O-O {[%emt 0:00:39]} Nf8 {[%emt 0:00:45]} 12. c4 {[%emt 0:04:28]} Be6 {[%emt 0:01:57]} 13. a3 {[%emt 0:03:15]} b5 {[%emt 0:15:06]} 14. c5 {[%emt 0:13:14]} Be7 {[%emt 0:00:58]} 15. Nc3 {[%emt 0:05:32]} Qc8 {[%emt 0:08:13]} 16. d5 {[%emt 0:12:11]} cxd5 {[%emt 0:01:11]} 17. Bxb5 {[%emt 0:00:54]} Rd8 {[%emt 0:00:41]} 18. c6 {[%emt 0:11:47]} Ng6 {[%emt 0:02:12]} 19. f4 {[%emt 0:01:23]} f5 {[%emt 0:11:26]} 20. g3 {[%emt 0:05:52]} Bf6 {[%emt 0:01:57]} 21. Bd4 {[%emt 0:01:58]} Bxd4 {[%emt 0:00:43]} 22. Rxd4 {[%emt 0:00:01]} a6 {[%emt 0:06:18]} 23. Ba4 {[%emt 0:02:00]} Ne7 {[%emt 0:02:29]} 24. Rhd1 {[%emt 0:12:05]} Ra7 {[%emt 0:06:42]} 25. Kb1 {[%emt 0:05:25]} Rc7 {[%emt 0:09:48]} 26. Qd3 {[%emt 0:01:21]} Kf8 {[%emt 0:03:13]} 27. Qd2 {[%emt 0:04:24]} g6 {[%emt 0:02:56]} 28. Rd3 {[%emt 0:01:08]} Rd6 {[%emt 0:06:23]} 29. Qe3 {[%emt 0:03:56]} Qd8 {[%emt 0:01:47]} 30. Qe5 {[%emt 0:01:37]} Kg8 {[%emt 0:01:34]} 31. R3d2 {[%emt 0:01:42]} Nxc6 {[%emt 0:10:18]} 32. Bxc6 {[%emt 0:00:14]} f6 {[%emt 0:00:24]} 33. Bxd5 {[%emt 0:03:11]} fxe5 {[%emt 0:03:06]} 34. Bxe6+ {[%emt 0:00:06]} Kg7 {[%emt 0:00:33]} 35. Rxd6 {[%emt 0:00:08]} Qb8 {[%emt 0:00:42]} 36. Rd8 {[%emt 0:01:04]} Qb6 {[%emt 0:01:06]} 37. Nd5 {[%emt 0:02:06]} Rc1+ {[%emt 0:00:32]} 38. Rxc1 {[%emt 0:00:11]} Qxd8 {[%emt 0:00:04]} 39. fxe5 {[%emt 0:00:45]} h4 {[%emt 0:01:08]} 40. Rc8 {[%emt 0:00:00]} Qa5 {[%emt 0:00:00]} 41. Rg8+ {[%emt 0:08:22]} Kh6 {[%emt 0:01:05]} 42. Bf7 {[%emt 0:01:43]} Qe1+ {[%emt 0:01:13]} 43. Ka2 {[%emt 0:00:07]} hxg3 {[%emt 0:00:28]} 44. Rxg6+ {[%emt 0:00:23]} Kh5 {[%emt 0:00:05]} 45. Nf4+ {[%emt 0:00:29]} Kh4 {[%emt 0:00:06]} 46. hxg3+ {[%emt 0:00:40]} 1-0

[Event "FIDE WYCC Girls U18 2023"]
[Site "Montesilvano"]
[Date "2023.11.22"]
[Round "9.7"]
[White "Matute Escobar, Roxanny"]
[Black "Mihelic, Vesna"]
[Result "0-1"]
[ECO "C75"]
[WhiteElo "1995"]
[BlackElo "2102"]
[Annotator "NA RC"]
[PlyCount "58"]
[EventDate "2023.11.13"]
[EventType "swiss"]
[EventCountry "ITA"]
[SourceTitle "playchess.com"]
[Source "ChessBase"]
[SourceQuality "1"]
[TimeControl "40/5400+30:1800+30"]

1. e4 {[%emt 0:00:49]} e5 {[%emt 0:00:08]} 2. Nf3 {[%emt 0:00:06]} Nc6 {[%emt 0:00:07]} 3. Bb5 {[%emt 0:00:32]} a6 {[%emt 0:00:13]} 4. Ba4 {[%emt 0:00:08]} d6 {[%emt 0:00:12]} 5. c3 {[%emt 0:00:19]} Bd7 {[%emt 0:00:22]} 6. O-O {[%emt 0:00:55]} Nge7 {[%emt 0:01:23]} 7. d4 {[%emt 0:01:17]} h6 {[%emt 0:01:23]} 8. dxe5 {[%emt 0:14:32]} dxe5 {[%emt 0:04:43]} 9. Be3 {[%emt 0:00:57]} Ng6 {[%emt 0:02:31]} 10. c4 {[%emt 0:05:13]} Be7 {[%emt 0:14:10]} 11. Nc3 {[%emt 0:00:21]} O-O {[%emt 0:02:55]} 12. Nd5 {[%emt 0:02:35]} Be6 {[%emt 0:16:33]} 13. a3 {[%emt 0:23:47]} Bg5 {[%emt 0:03:54]} 14. Nxg5 {[%emt 0:05:21]} hxg5 {[%emt 0:00:02]} 15. Qh5 {[%emt 0:02:05]} Nf4 {[%emt 0:02:48]} 16. Bxf4 {[%emt 0:00:07]} gxf4 {[%emt 0:01:53]} 17. Bxc6 {[%emt 0:05:12]} bxc6 {[%emt 0:00:22]} 18. Nb4 {[%emt 0:00:07]} Qf6 {[%emt 0:02:24]} 19. Rac1 {[%emt 0:10:56]} g6 {[%emt 0:00:38]} 20. Qf3 {[%emt 0:00:06]} a5 {[%emt 0:03:16]} 21. Nd3 {[%emt 0:01:27]} Kg7 {[%emt 0:12:03]} 22. Nc5 {[%emt 0:06:03]} Bc8 {[%emt 0:11:12]} 23. Qc3 {[%emt 0:07:02]} Rh8 {[%emt 0:04:01]} 24. Rfd1 {[%emt 0:00:15]} Qg5 {[%emt 0:04:51]} 25. Nd7 {[%emt 0:02:29]} Bxd7 {[%emt 0:02:55]} 26. Rxd7 {[%emt 0:00:07]} f3 {[%emt 0:01:03]} 27. g3 {[%emt 0:00:35]} Rxh2 {[%emt 0:03:32]} 28. Qxf3 {[%emt 0:00:18]} Qxc1+ {[%emt 0:00:09]} 29. Kxh2 {[%emt 0:00:13]} Rh8+ {[%emt 0:00:06]} 0-1

[Event "FIDE WYCC Girls U18 2023"]
[Site "Montesilvano"]
[Date "2023.11.22"]
[Round "9.8"]
[White "Liu, Kelsey"]
[Black "Blanquet, Camille"]
[Result "1-0"]
[ECO "B12"]
[WhiteElo "2051"]
[BlackElo "1953"]
[Annotator "NA RC"]
[PlyCount "67"]
[EventDate "2023.11.13"]
[EventType "swiss"]
[EventCountry "ITA"]
[SourceTitle "playchess.com"]
[Source "ChessBase"]
[SourceQuality "1"]
[TimeControl "40/5400+30:1800+30"]

1. e4 {[%emt 0:01:02]} c6 {[%emt 0:00:10]} 2. d4 {[%emt 0:00:11]} d5 {[%emt 0:00:11]} 3. e5 {[%emt 0:00:09]} c5 {[%emt 0:00:23]} 4. Nf3 {[%emt 0:00:16]} cxd4 {[%emt 0:01:54]} 5. Qxd4 {[%emt 0:00:11]} Nc6 {[%emt 0:03:17]} 6. Qf4 {[%emt 0:00:23]} g6 {[%emt 0:08:06]} 7. Nc3 {[%emt 0:15:15]} Bf5 {[%emt 0:07:39]} 8. Bb5 {[%emt 0:08:24]} Qd7 {[%emt 0:06:44]} 9. Nd4 {[%emt 0:08:42]} Bg7 {[%emt 0:06:32]} 10. Nxf5 {[%emt 0:09:06]} gxf5 {[%emt 0:04:29]} 11. Qg3 {[%emt 0:01:26]} Kf8 {[%emt 0:01:22]} 12. O-O {[%emt 0:07:31]} e6 {[%emt 0:03:01]} 13. Be3 {[%emt 0:11:52]} b6 {[%emt 0:07:06]} 14. Ba4 {[%emt 0:07:44]} Nge7 {[%emt 0:03:03]} 15. f4 {[%emt 0:01:14]} Rg8 {[%emt 0:04:02]} 16. Qh3 {[%emt 0:00:57]} Qb7 {[%emt 0:07:17]} 17. Ne2 {[%emt 0:06:05]} Rc8 {[%emt 0:09:45]} 18. Ng3 {[%emt 0:04:16]} b5 {[%emt 0:04:16]} 19. Bb3 {[%emt 0:00:07]} d4 {[%emt 0:00:34]} 20. Bf2 {[%emt 0:00:55]} Ng6 {[%emt 0:01:29]} 21. Nh5 {[%emt 0:00:28]} Qe7 {[%emt 0:02:11]} 22. Rad1 {[%emt 0:00:52]} a5 {[%emt 0:03:26]} 23. a4 {[%emt 0:00:22]} bxa4 {[%emt 0:01:03]} 24. Bxa4 {[%emt 0:00:11]} Nxf4 {[%emt 0:05:24]} 25. Nxf4 {[%emt 0:00:34]} Bxe5 {[%emt 0:00:05]} 26. Nd3 {[%emt 0:04:49]} Bf6 {[%emt 0:01:11]} 27. c3 {[%emt 0:00:26]} Qb7 {[%emt 0:01:18]} 28. Nc5 {[%emt 0:00:49]} Qe7 {[%emt 0:01:27]} 29. cxd4 {[%emt 0:00:44]} Rg4 {[%emt 0:01:38]} 30. d5 {[%emt 0:02:29]} exd5 {[%emt 0:01:01]} 31. Bxc6 {[%emt 0:01:29]} Rxc6 {[%emt 0:00:31]} 32. Rxd5 {[%emt 0:00:09]} Qe2 {[%emt 0:01:50]} 33. Re1 {[%emt 0:02:00]} Qc4 {[%emt 0:00:39]} 34. Qh6+ {[%emt 0:00:15]} 1-0

[Event "FIDE WYCC Girls U18 2023"]
[Site "Montesilvano"]
[Date "2023.11.22"]
[Round "9.9"]
[White "Sevcikova, Lucia"]
[Black "Gasimova, Samra"]
[Result "0-1"]
[ECO "E35"]
[WhiteElo "2047"]
[BlackElo "1860"]
[Annotator "NA RC"]
[PlyCount "94"]
[EventDate "2023.11.13"]
[EventType "swiss"]
[EventCountry "ITA"]
[SourceTitle "playchess.com"]
[Source "ChessBase"]
[SourceQuality "1"]
[TimeControl "40/5400+30:1800+30"]

1. d4 {[%emt 0:00:02]} Nf6 {[%emt 0:00:04]} 2. c4 {[%emt 0:00:03]} e6 {[%emt 0:00:04]} 3. Nc3 {[%emt 0:00:03]} Bb4 {[%emt 0:00:03]} 4. Qc2 {[%emt 0:00:03]} d5 {[%emt 0:00:03]} 5. cxd5 {[%emt 0:00:29]} exd5 {[%emt 0:00:01]} 6. Bg5 {[%emt 0:00:10]} c5 {[%emt 0:00:04]} 7. Nf3 {[%emt 0:12:08]} h6 {[%emt 0:01:42]} 8. Bxf6 {[%emt 0:04:00]} Qxf6 {[%emt 0:00:40]} 9. Rd1 {[%emt 0:04:42]} Nc6 10. a3 {[%emt 0:11:39]} Bf5 {[%emt 0:14:20]} 11. Qd2 {[%emt 0:04:25]} Bxc3 {[%emt 0:02:28]} 12. bxc3 {[%emt 0:01:10]} c4 {[%emt 0:07:10]} 13. e3 {[%emt 0:06:31]} O-O {[%emt 0:03:31]} 14. Be2 {[%emt 0:01:34]} Qd6 {[%emt 0:01:38]} 15. Qb2 {[%emt 0:03:39]} Rab8 {[%emt 0:03:07]} 16. O-O {[%emt 0:03:38]} b5 {[%emt 0:02:47]} 17. Nd2 {[%emt 0:02:01]} Rfe8 {[%emt 0:06:38]} 18. Rfe1 {[%emt 0:05:55]} Bg6 {[%emt 0:06:33]} 19. Bf3 {[%emt 0:05:14]} f5 {[%emt 0:00:24]} 20. Qa2 {[%emt 0:02:41]} Bf7 {[%emt 0:08:08]} 21. Rb1 {[%emt 0:05:46]} Rb6 {[%emt 0:04:12]} 22. Qc2 {[%emt 0:04:53]} Be6 {[%emt 0:12:03]} 23. Bh5 {[%emt 0:08:09]} Rf8 {[%emt 0:02:38]} 24. Ra1 {[%emt 0:02:00]} a5 {[%emt 0:01:51]} 25. f3 {[%emt 0:02:17]} Kh7 {[%emt 0:04:50]} 26. Bg4 {[%emt 0:01:25]} b4 {[%emt 0:05:24]} 27. axb4 {[%emt 0:01:56]} axb4 {[%emt 0:00:03]} 28. Bh3 {[%emt 0:00:13]} bxc3 {[%emt 0:03:27]} 29. Qxc3 {[%emt 0:00:38]} Qb4 {[%emt 0:00:11]} 30. Qc2 {[%emt 0:04:52]} Qb2 {[%emt 0:01:49]} 31. Ra2 {[%emt 0:00:33]} Qxc2 {[%emt 0:01:07]} 32. Rxc2 {[%emt 0:00:03]} Nb4 {[%emt 0:00:39]} 33. Rc3 {[%emt 0:00:39]} Nd3 {[%emt 0:00:34]} 34. Rd1 {[%emt 0:01:09]} g5 {[%emt 0:01:55]} 35. g3 {[%emt 0:01:56]} g4 {[%emt 0:06:20]} 36. fxg4 {[%emt 0:00:33]} fxg4 {[%emt 0:00:04]} 37. Bg2 {[%emt 0:00:21]} Rb2 {[%emt 0:00:41]} 38. Rf1 {[%emt 0:01:21]} Rxf1+ {[%emt 0:01:05]} 39. Nxf1 {[%emt 0:00:01]} Ne1 {[%emt 0:00:06]} 40. Bh1 {[%emt 0:00:00]} Nf3+ {[%emt 0:00:00]} 41. Bxf3 {[%emt 0:02:06]} gxf3 {[%emt 0:00:33]} 42. h4 {[%emt 0:05:33]} Bh3 {[%emt 0:01:00]} 43. Rc1 {[%emt 0:00:51]} c3 {[%emt 0:00:18]} 44. e4 {[%emt 0:05:26]} dxe4 {[%emt 0:01:38]} 45. Ne3 {[%emt 0:01:09]} f2+ {[%emt 0:00:27]} 46. Kh1 {[%emt 0:00:13]} Re2 {[%emt 0:00:06]} 47. Rxc3 {[%emt 0:01:49]} Rxe3 {[%emt 0:00:08]} 0-1

[Event "FIDE WYCC Girls U18 2023"]
[Site "Montesilvano"]
[Date "2023.11.22"]
[Round "9.10"]
[White "Trifoi, Mihaela-Ioana"]
[Black "Nguyen, Thien Ngan"]
[Result "1/2-1/2"]
[ECO "C41"]
[WhiteElo "2021"]
[BlackElo "1891"]
[Annotator "NA RC"]
[PlyCount "117"]
[EventDate "2023.11.13"]
[EventType "swiss"]
[EventCountry "ITA"]
[SourceTitle "playchess.com"]
[Source "ChessBase"]
[SourceQuality "1"]
[TimeControl "40/5400+30:1800+30"]

1. e4 {[%emt 0:00:05]} e5 {[%emt 0:00:07]} 2. Nf3 {[%emt 0:00:06]} d6 {[%emt 0:00:43]} 3. Bc4 {[%emt 0:00:35]} Be7 {[%emt 0:00:59]} 4. c3 {[%emt 0:00:30]} Nf6 {[%emt 0:00:09]} 5. d3 {[%emt 0:00:04]} O-O {[%emt 0:00:07]} 6. Bb3 {[%emt 0:00:11]} Nc6 {[%emt 0:00:17]} 7. O-O {[%emt 0:00:35]} Na5 {[%emt 0:00:08]} 8. Bc2 {[%emt 0:00:08]} c5 {[%emt 0:00:06]} 9. h3 {[%emt 0:02:38]} Nc6 {[%emt 0:00:45]} 10. Nbd2 {[%emt 0:00:10]} h6 {[%emt 0:03:43]} 11. Re1 {[%emt 0:00:12]} Be6 {[%emt 0:00:17]} 12. Nf1 {[%emt 0:00:18]} Qc7 {[%emt 0:02:20]} 13. Ng3 {[%emt 0:01:12]} b5 {[%emt 0:08:29]} 14. Nh2 {[%emt 0:09:08]} d5 {[%emt 0:06:42]} 15. Qf3 {[%emt 0:01:23]} d4 {[%emt 0:07:49]} 16. Nf5 {[%emt 0:00:39]} Bxf5 {[%emt 0:00:50]} 17. exf5 {[%emt 0:00:40]} Rad8 {[%emt 0:14:18]} 18. g4 {[%emt 0:04:06]} e4 {[%emt 0:05:37]} 19. Qg2 {[%emt 0:03:57]} exd3 {[%emt 0:10:16]} 20. Bxd3 {[%emt 0:00:34]} dxc3 {[%emt 0:04:38]} 21. Bxb5 {[%emt 0:04:24]} Nd4 {[%emt 0:02:07]} 22. Bd3 {[%emt 0:00:08]} Bd6 {[%emt 0:15:13]} 23. Nf1 {[%emt 0:00:36]} cxb2 {[%emt 0:06:09]} 24. Bxb2 {[%emt 0:00:07]} Nd5 {[%emt 0:03:05]} 25. Bxd4 {[%emt 0:08:27]} cxd4 {[%emt 0:02:47]} 26. Rac1 {[%emt 0:06:56]} Nc3 {[%emt 0:01:56]} 27. h4 {[%emt 0:01:23]} Bf4 {[%emt 0:00:24]} 28. Rc2 {[%emt 0:00:07]} Rfe8 {[%emt 0:01:20]} 29. Rxe8+ {[%emt 0:02:51]} Rxe8 {[%emt 0:00:00]} 30. g5 {[%emt 0:00:07]} Qc5 {[%emt 0:02:04]} 31. g6 {[%emt 0:04:15]} Qc7 {[%emt 0:01:46]} 32. Rb2 {[%emt 0:00:44]} f6 {[%emt 0:00:40]} 33. Rb7 {[%emt 0:00:34]} Qc5 {[%emt 0:00:12]} 34. Rd7 {[%emt 0:01:04]} Qb6 {[%emt 0:00:50]} 35. Qf3 {[%emt 0:01:33]} Bc7 {[%emt 0:00:32]} 36. Nd2 {[%emt 0:02:22]} Rd8 {[%emt 0:00:21]} 37. Bc4+ {[%emt 0:02:28]} Kh8 {[%emt 0:00:12]} 38. Rf7 {[%emt 0:00:33]} Qd6 {[%emt 0:00:48]} 39. Nf1 {[%emt 0:03:47]} Qc5 {[%emt 0:00:33]} 40. Be6 {[%emt 0:00:00]} d3 {[%emt 0:00:00]} 41. Rd7 {[%emt 0:05:09]} Ne2+ {[%emt 0:08:09]} 42. Kg2 {[%emt 0:01:26]} Nf4+ {[%emt 0:01:28]} 43. Kg1 {[%emt 0:01:54]} Ne2+ {[%emt 0:00:07]} 44. Kg2 {[%emt 0:01:10]} Nf4+ {[%emt 0:05:08]} 45. Kg1 {[%emt 0:00:14]} Re8 {[%emt 0:10:49]} 46. Bf7 {[%emt 0:12:24]} Rb8 {[%emt 0:03:32]} 47. Bb3 {[%emt 0:01:02]} Ne2+ {[%emt 0:02:40]} 48. Kg2 {[%emt 0:00:07]} Nf4+ {[%emt 0:00:05]} 49. Kg1 {[%emt 0:00:04]} Qe5 {[%emt 0:01:32]} 50. Qe3 {[%emt 0:05:54]} Ne2+ {[%emt 0:01:43]} 51. Kg2 {[%emt 0:00:47]} Nf4+ {[%emt 0:00:33]} 52. Kg1 {[%emt 0:01:17]} Ne2+ {[%emt 0:00:06]} 53. Kh1 {[%emt 0:01:10]} Nf4 {[%emt 0:01:15]} 54. Kg1 {[%emt 0:08:02]} Ne2+ {[%emt 0:00:08]} 55. Kg2 {[%emt 0:01:00]} Nf4+ {[%emt 0:00:02]} 56. Kg1 {[%emt 0:01:51]} Ne2+ {[%emt 0:01:11]} 57. Kh1 Nf4 58. Qxe5 Bxe5 59. Rxa7 1/2-1/2

[Event "FIDE WYCC Girls U18 2023"]
[Site "Montesilvano"]
[Date "2023.11.22"]
[Round "9.11"]
[White "Petricenco, Ana"]
[Black "Skarbarchuk, Tetyana"]
[Result "1-0"]
[ECO "C00"]
[WhiteElo "1902"]
[BlackElo "2010"]
[Annotator "NA RC"]
[PlyCount "117"]
[EventDate "2023.11.13"]
[EventType "swiss"]
[EventCountry "ITA"]
[SourceTitle "playchess.com"]
[Source "ChessBase"]
[SourceQuality "1"]
[TimeControl "40/5400+30:1800+30"]

1. e4 {[%emt 0:00:03]} e6 {[%emt 0:00:04]} 2. d3 {[%emt 0:00:10]} d5 {[%emt 0:00:06]} 3. Qe2 {[%emt 0:00:41]} Nf6 {[%emt 0:00:12]} 4. Nf3 {[%emt 0:00:44]} Be7 {[%emt 0:00:23]} 5. e5 {[%emt 0:01:30]} Nfd7 {[%emt 0:00:27]} 6. g3 {[%emt 0:00:26]} b5 {[%emt 0:03:51]} 7. Bg2 {[%emt 0:00:58]} c5 {[%emt 0:00:36]} 8. O-O {[%emt 0:13:26]} O-O {[%emt 0:00:17]} 9. Bf4 {[%emt 0:01:38]} Nc6 {[%emt 0:03:34]} 10. c3 {[%emt 0:02:47]} a5 {[%emt 0:04:57]} 11. h4 {[%emt 0:01:15]} a4 {[%emt 0:05:33]} 12. Nbd2 {[%emt 0:09:10]} Ba6 {[%emt 0:01:46]} 13. Rfe1 {[%emt 0:03:09]} c4 {[%emt 0:05:37]} 14. d4 {[%emt 0:09:19]} b4 {[%emt 0:06:38]} 15. a3 {[%emt 0:00:04]} bxa3 {[%emt 0:02:01]} 16. bxa3 {[%emt 0:00:02]} Qa5 {[%emt 0:01:41]} 17. Qe3 {[%emt 0:00:14]} Rfb8 {[%emt 0:10:29]} 18. h5 {[%emt 0:01:56]} h6 {[%emt 0:06:54]} 19. g4 {[%emt 0:01:35]} Rb2 {[%emt 0:02:37]} 20. Rec1 {[%emt 0:01:12]} Qd8 {[%emt 0:04:27]} 21. g5 {[%emt 0:02:32]} hxg5 {[%emt 0:00:09]} 22. Nxg5 {[%emt 0:04:54]} Nf8 {[%emt 0:10:22]} 23. Bh3 {[%emt 0:06:03]} Na5 {[%emt 0:00:25]} 24. Kh2 {[%emt 0:03:49]} Nb3 {[%emt 0:05:47]} 25. Nxb3 {[%emt 0:01:24]} cxb3 {[%emt 0:00:06]} 26. Rg1 {[%emt 0:00:27]} Nh7 {[%emt 0:00:11]} 27. Nxh7 {[%emt 0:08:29]} Kxh7 {[%emt 0:00:07]} 28. Qg3 {[%emt 0:00:35]} Qf8 {[%emt 0:01:25]} 29. Rg2 {[%emt 0:01:59]} Rc2 {[%emt 0:06:21]} 30. h6 {[%emt 0:02:16]} g6 {[%emt 0:05:09]} 31. Rag1 {[%emt 0:03:45]} Qe8 {[%emt 0:01:13]} 32. Be3 {[%emt 0:09:47]} Rc8 {[%emt 0:02:23]} 33. Bxe6 {[%emt 0:08:39]} fxe6 {[%emt 0:00:26]} 34. Qxg6+ {[%emt 0:00:03]} Qxg6 {[%emt 0:00:21]} 35. Rxg6 {[%emt 0:00:03]} Bf8 {[%emt 0:00:36]} 36. Rf6 {[%emt 0:00:03]} Bd3 {[%emt 0:00:29]} 37. Rf7+ {[%emt 0:00:06]} Kh8 {[%emt 0:00:08]} 38. Bg5 {[%emt 0:01:31]} b2 {[%emt 0:07:35]} 39. Bf6+ {[%emt 0:00:33]} Bg7 {[%emt 0:00:03]} 40. Bxg7+ {[%emt 0:00:00]} Kg8 {[%emt 0:00:00]} 41. Rb7 {[%emt 0:09:02]} Rxf2+ {[%emt 0:03:44]} 42. Kg3 {[%emt 0:00:10]} Rd2 {[%emt 0:01:37]} 43. Kf4 {[%emt 0:00:30]} b1=Q {[%emt 0:02:49]} 44. Rbxb1 {[%emt 0:00:22]} Bxb1 {[%emt 0:00:05]} 45. Rxb1 {[%emt 0:00:05]} Rxc3 {[%emt 0:00:46]} 46. Rb8+ {[%emt 0:00:20]} Kh7 {[%emt 0:00:07]} 47. Kg5 {[%emt 0:00:45]} Rg3+ {[%emt 0:02:25]} 48. Kf6 {[%emt 0:00:07]} Rg6+ {[%emt 0:00:40]} 49. Kf7 {[%emt 0:01:10]} Rf2+ {[%emt 0:00:16]} 50. Ke7 {[%emt 0:00:02]} Rg3 {[%emt 0:01:47]} 51. Kxe6 {[%emt 0:00:25]} Rxa3 {[%emt 0:01:51]} 52. Kxd5 {[%emt 0:00:07]} Rc3 {[%emt 0:02:38]} 53. e6 {[%emt 0:01:33]} Re3 {[%emt 0:00:55]} 54. Be5 {[%emt 0:00:49]} a3 {[%emt 0:01:51]} 55. e7 {[%emt 0:00:17]} Rxe5+ {[%emt 0:01:30]} 56. dxe5 {[%emt 0:00:06]} a2 {[%emt 0:00:10]} 57. e8=Q {[%emt 0:00:04]} a1=Q {[%emt 0:00:23]} 58. Qe7+ {[%emt 0:02:10]} Kxh6 {[%emt 0:01:20]} 59. Rh8+ {[%emt 0:00:05]} 1-0